fUST/lending_fUST_20250617
["ID","MTS","AMOUNT","RATE_DAILY","PERIOD"]
[366178651,1750099845024,-215.0738,0.00023608,2]
[366178653,1750099845034,-221.0,0.00023637,2]
[366178655,1750099845046,-430.89292246,0.00023683,2]
[366178658,1750099845056,-303.43,0.00023715,2]
[366178660,1750099845080,-406.0,0.00023715,2]
[366178663,1750099845095,-355.94586694,0.00023722,2]
[366178665,1750099845111,-151.0,0.00023772,7]
[366178667,1750099845125,-221.0,0.00023774,2]
[366178670,1750099845141,-380.7,0.00023816,3]
[366178672,1750099845155,-571.09,0.00023816,3]
[366178674,1750099845167,-12500.0,0.00023817,3]
[366178676,1750099845179,-190.35,0.00023825,3]
[366178678,1750099845193,-12500.0,0.00023826,3]
[366178681,1750099845207,-9880.57457919,0.00023835,3]
[366178683,1750099845220,-460.0,0.00023835,4]
[366178685,1750099845232,-460.0,0.00023835,4]
[366178688,1750099845245,-634.92,0.00023835,4]
[366178690,1750099845259,-477.24,0.00023835,4]
[366178692,1750099845272,-460.0,0.00023835,4]
[366178695,1750099845285,-598.06,0.00023835,4]
[366178697,1750099845298,-460.0,0.00023835,4]
[366178699,1750099845312,-460.0,0.00023835,4]
[366178701,1750099845324,-460.0,0.00023835,4]
[366178704,1750099845339,-355.94586694,0.000239,2]
[366178706,1750099845353,-675.12452588,0.000239,2]
[366178708,1750099845365,-53551.69464736,0.000239,2]
[366178710,1750099845378,-500.0,0.00023973,2]
[366178712,1750099845392,-322.89050503,0.00023973,2]
[366179437,1750100146892,190.063806,0.00019725,2]
[366179439,1750100209055,500.08069563,0.00024657,120]
[366179443,1750100226951,1000.0,0.00024657,120]
[366179444,1750100287287,6871.60929013,0.00019725,2]
[366179445,1750100287312,112.57124647,0.00019725,2]
[366179446,1750100316966,580.64,0.00024657,120]
[366179465,1750100850325,322.499113,0.00013699,2]
[366179467,1750100906772,5000.0,0.0002,2]
[366179468,1750100921883,4564.92964053,0.0002,2]
[366179469,1750100921908,435.07035947,0.0002,2]
[366179471,1750100936732,5000.0,0.0002,2]
[366179472,1750100952596,4564.92964053,0.0002,2]
[366179473,1750100952620,435.07035947,0.0002,2]
[366179474,1750100998060,5000.0,0.0002,2]
[366179476,1750101014840,4564.92964053,0.0002,2]
[366179477,1750101014865,435.07035947,0.0002,2]
[366179674,1750101037214,-322.499113,0.00020187,2]
[366179675,1750101037225,-186.731589,0.00020362,2]
[366179676,1750101037235,-169.564,0.00020924,2]
[366179677,1750101037244,-1200.0,0.00021024,2]
[366179678,1750101037254,-13991.46540824,0.00021025,2]
[366179739,1750101038119,-10908.53459176,0.00021025,2]
[366179741,1750101038129,-500.0,0.00021064,2]
[366179744,1750101038139,-160.0,0.00021201,2]
[366179746,1750101038149,-1264.11,0.00021223,2]
[366179748,1750101038159,-460.0,0.00021917,4]
[366179749,1750101038168,-151.73,0.00021917,2]
[366179751,1750101038179,-460.0,0.00021917,2]
[366179753,1750101038189,-460.0,0.00021917,4]
[366179755,1750101038199,-460.0,0.00021917,4]
[366179757,1750101038209,-460.0,0.00021917,4]
[366179758,1750101038219,-460.0,0.00021917,2]
[366179759,1750101038228,-273.22,0.00021917,4]
[366179760,1750101038243,-460.0,0.00021917,4]
[366179761,1750101038254,-460.0,0.00021917,4]
[366179762,1750101038264,-460.0,0.00021917,4]
[366179763,1750101038274,-460.0,0.00021917,4]
[366179764,1750101038283,-460.0,0.00021917,4]
[366179765,1750101038293,-460.0,0.00021917,4]
[366179766,1750101038303,-460.0,0.00021917,4]
[366179767,1750101038312,-546.71,0.00021917,4]
[366179768,1750101038325,-460.0,0.00021917,4]
[366179769,1750101038335,-460.0,0.00021917,4]
[366179770,1750101038344,-501.77702639,0.00021917,4]
[366179771,1750101038354,-460.0,0.00021917,4]
[366179772,1750101038363,-460.0,0.00021917,4]
[366179773,1750101038373,-527.03,0.00021917,4]
[366179774,1750101038382,-460.0,0.00021917,4]
[366179775,1750101038392,-460.0,0.00021917,4]
[366179776,1750101038402,-460.0,0.00021917,4]
[366179777,1750101038411,-460.0,0.00021917,4]
[366179778,1750101038421,-460.0,0.00021917,4]
[366179779,1750101038436,-460.0,0.00021917,4]
[366179780,1750101038446,-460.0,0.00021917,4]
[366179781,1750101038457,-460.0,0.00021917,4]
[366179782,1750101038466,-460.0,0.00021917,4]
[366179783,1750101038476,-575.0934504,0.00021917,4]
[366179784,1750101038487,-460.0,0.00021917,4]
[366179785,1750101038498,-460.0,0.00021917,2]
[366179786,1750101038508,-460.0,0.00021917,4]
[366179787,1750101038519,-460.0,0.00021917,4]
[366179788,1750101038529,-542.83020127,0.00022189,2]
[366179789,1750101038540,-460.0,0.00022191,4]
[366179790,1750101038550,-546.71,0.00022191,4]
[366179791,1750101038560,-460.0,0.00022191,4]
[366179792,1750101038570,-460.0,0.00022191,4]
[366179793,1750101038579,-527.03,0.00022191,4]
[366179794,1750101038590,-460.0,0.00022191,4]
[366179795,1750101038600,-460.0,0.00022191,4]
[366179796,1750101038609,-460.0,0.00022191,4]
[366179797,1750101038619,-460.0,0.00022191,4]
[366179798,1750101038629,-460.0,0.00022191,4]
[366179799,1750101038639,-460.0,0.00022191,4]
[366179800,1750101038649,-2204.0,0.00022377,2]
[366179801,1750101038659,-460.0,0.00022465,4]
[366179802,1750101038669,-546.71,0.00022465,4]
[366179803,1750101038680,-460.0,0.00022465,4]
[366179804,1750101038689,-460.0,0.00022465,4]
[366179805,1750101038699,-527.03,0.00022465,4]
[366179806,1750101038710,-460.0,0.00022465,4]
[366179807,1750101038720,-460.0,0.00022465,4]
[366179808,1750101038730,-460.0,0.00022465,4]
[366179809,1750101038739,-460.0,0.00022465,4]
[366179810,1750101038749,-460.0,0.00022465,4]
[366179811,1750101038759,-225.04150863,0.00022557,2]
[366179812,1750101038769,-500.0,0.0002264,2]
[366179813,1750101038779,-256.45503575,0.00022739,4]
[366179814,1750101038789,-546.71,0.00022739,4]
[366179815,1750101038799,-460.0,0.00022739,4]
[366179816,1750101038809,-527.03,0.00022739,4]
[366179817,1750101038819,-460.0,0.00022739,4]
[366179818,1750101038828,-460.0,0.00022739,4]
[366179819,1750101038838,-460.0,0.00022739,4]
[366179820,1750101038848,-460.0,0.00022739,4]
[366179821,1750101038858,-460.0,0.00022739,4]
[366179822,1750101038870,-2204.0,0.00022905,2]
[366179823,1750101038882,-168.0,0.0002297,2]
[366179824,1750101038891,-546.71,0.00023013,4]
[366179825,1750101038901,-460.0,0.00023013,4]
[366179826,1750101038912,-527.03,0.00023013,4]
[366179827,1750101038922,-460.0,0.00023013,4]
[366179828,1750101038933,-460.0,0.00023013,4]
[366179829,1750101038943,-460.0,0.00023013,4]
[366179830,1750101038953,-460.0,0.00023013,4]
[366179831,1750101038963,-460.0,0.00023013,4]
[366179832,1750101038972,-207.4,0.00023035,2]
[366179833,1750101038983,-365.4091647,0.00023041,2]
[366179834,1750101038993,-365.4091647,0.00023041,2]
[366179835,1750101039006,-365.4091647,0.00023041,2]
[366179836,1750101039016,-365.4091647,0.00023041,2]
[366179837,1750101039026,-365.4091647,0.00023041,2]
[366179838,1750101039036,-364.6117173,0.00023041,2]
[366179839,1750101039046,-3000.0,0.000231,2]
[366179840,1750101039056,-3000.0,0.0002311,2]
[366179841,1750101039065,-3000.0,0.0002312,2]
[366179842,1750101039075,-262.24667786,0.0002312,2]
[366179843,1750101039236,-3000.0,0.0002313,2]
[366179844,1750101039246,-3000.0,0.0002314,2]
[366179845,1750101039256,-3000.0,0.0002315,2]
[366179846,1750101039266,-2528.22,0.00023152,2]
[366179847,1750101039276,-3000.0,0.0002316,2]
[366179848,1750101039285,-3000.0,0.0002317,2]
[366179849,1750101039295,-3000.0,0.0002318,2]
[366179850,1750101039305,-3000.0,0.0002319,2]
[366179851,1750101039317,-186.68,0.00023199,2]
[366179852,1750101039328,-3000.0,0.000232,2]
[366179853,1750101039338,-3000.0,0.0002321,2]
[366179854,1750101039348,-3000.0,0.0002322,2]
[366179855,1750101039357,-3000.0,0.0002323,2]
[366179856,1750101039369,-500.0,0.00023239,2]
[366179857,1750101039379,-3000.0,0.0002324,2]
[366179858,1750101039389,-3000.0,0.0002325,2]
[366179859,1750101039401,-3000.0,0.0002326,2]
[366179860,1750101039412,-3000.0,0.0002327,2]
[366179861,1750101039421,-571.05,0.00023277,3]
[366179862,1750101039432,-3000.0,0.0002328,2]
[366179863,1750101039443,-190.35,0.0002328,3]
[366179864,1750101039453,-546.71,0.00023287,4]
[366179865,1750101039464,-460.0,0.00023287,4]
[366179866,1750101039473,-527.03,0.00023287,4]
[366179867,1750101039484,-460.0,0.00023287,4]
[366179868,1750101039493,-460.0,0.00023287,4]
[366179869,1750101039503,-460.0,0.00023287,4]
[366179870,1750101039512,-460.0,0.00023287,4]
[366179871,1750101039521,-460.0,0.00023287,4]
[366179872,1750101039531,-3000.0,0.0002329,2]
[366179873,1750101039540,-3000.0,0.000233,2]
[366179874,1750101039550,-3465.770869,0.0002331,2]
[366179875,1750101039560,-262.24667782,0.00023315,2]
[366179876,1750101039571,-435.05119013,0.00023449,2]
[366179877,1750101039581,-262.24667782,0.0002351,2]
[366179878,1750101039590,-256.32,0.00023551,3]
[366179880,1750101039600,-486.19,0.00023551,3]
[366179881,1750101039610,-546.71,0.00023561,4]
[366179882,1750101039620,-460.0,0.00023561,4]
[366179883,1750101039629,-527.03,0.00023561,4]
[366179884,1750101039640,-460.0,0.00023561,4]
[366179886,1750101039650,-460.0,0.00023561,4]
[366179887,1750101039660,-460.0,0.00023561,4]
[366179888,1750101039670,-460.0,0.00023561,4]
[366179889,1750101039681,-460.0,0.00023561,4]
[366179890,1750101039690,-168.0,0.00023562,2]
[366179891,1750101039700,-162.05,0.00023589,3]
[366179892,1750101039710,-168.0,0.00023599,2]
[366179893,1750101039720,-622.25,0.000236,2]
[366179894,1750101039730,-435.05119013,0.00023692,2]
[366179895,1750101039740,-200.1907301,0.000237,2]
[366179896,1750101039750,-262.24667782,0.00023705,2]
[366179897,1750101039760,-150.0,0.00023715,2]
[366179898,1750101039770,-150.0,0.00023715,2]
[366179899,1750101039780,-150.0,0.00023715,2]
[366179900,1750101039789,-406.0,0.00023715,2]
[366179901,1750101039799,-158.66118946,0.00023808,2]
[366179902,1750101039808,-546.71,0.00023835,4]
[366179903,1750101039819,-460.0,0.00023835,4]
[366179904,1750101039829,-527.03,0.00023835,4]
[366179905,1750101039839,-460.0,0.00023835,4]
[366179906,1750101039849,-460.0,0.00023835,4]
[366179908,1750101039859,-358.55504361,0.00023835,4]
[366179910,1750101039868,-460.0,0.00023835,4]
[366179912,1750101039878,-460.0,0.00023835,4]
[366179914,1750101039888,-168.0,0.00023854,2]
[366179916,1750101039898,-262.24667782,0.000239,2]
[366179918,1750101039908,-35701.1297649,0.000239,2]
[366179920,1750101039919,-500.0,0.00023973,2]
[366179922,1750101039929,-500.25304027,0.00023973,2]
[366179924,1750101039939,-268.122783,0.00023973,2]
[366179926,1750101039950,-500.0,0.00023973,2]
[366179928,1750101039960,-500.0,0.00023973,2]
[366179930,1750101039970,-500.0,0.00023973,2]
[366179932,1750101039981,-183.52788454,0.00023973,2]
[366179934,1750101039991,-500.0,0.00023973,2]
[366179936,1750101040000,-500.0,0.00023973,2]
[366179938,1750101040010,-500.0,0.00023973,2]
[366179941,1750101040021,-500.0,0.00023973,2]
[366179943,1750101040030,-170.05818164,0.00023973,2]
[366179945,1750101040040,-500.84919256,0.00023973,2]
[366179947,1750101040051,-500.0,0.00023973,2]
[366179949,1750101040060,-501.8668994,0.00023973,2]
[366179951,1750101040071,-500.0,0.00023973,2]
[366179953,1750101040080,-500.0,0.00023973,2]
[366179954,1750101040090,-336.9302654,0.00023973,2]
[366179956,1750101040100,-502.19345932,0.00023973,2]
[366179958,1750101040109,-501.54253158,0.00023973,2]
[366179961,1750101040120,-636.55493512,0.00023973,2]
[366179963,1750101040131,-500.0,0.00023973,2]
[366179964,1750101040140,-500.0,0.00023973,2]
[366179966,1750101040150,-500.0,0.00023973,2]
[366179967,1750101040160,-500.0,0.00023973,2]
[366179969,1750101040170,-500.0,0.00023973,2]
[366179971,1750101040182,-500.0,0.00023973,2]
[366179973,1750101040191,-171.87098977,0.00023973,2]
[366179975,1750101040201,-500.0,0.00023973,2]
[366179977,1750101040211,-600.0,0.00023973,2]
[366179979,1750101040221,-151.0,0.00023973,2]
[366179981,1750101040231,-200.0,0.00023999,2]
[366179983,1750101040240,-16702.01611194,0.00023999,2]
[366179985,1750101040250,-1562.847558,0.00024,2]
[366179987,1750101040260,-11865.06916262,0.00024,2]
[366179989,1750101040270,-12307.99558207,0.00024,2]
[366179991,1750101040279,-429511.75188849,0.00024,2]
[366179994,1750101040293,-1661.7869081,0.00024,2]
[366179996,1750101040304,-280.44,0.00024,2]
[366180523,1750101046266,-651.05043173,0.00021024,2]
[366180524,1750101046278,-500.0,0.00021024,2]
[366180525,1750101046292,-650.0,0.00021024,2]
[366180526,1750101046307,-500.0,0.00021024,2]
[366180527,1750101046321,-500.0,0.00021024,2]
[366180529,1750101046333,-500.0,0.00021024,2]
[366180530,1750101046344,-460.0,0.00021917,4]
[366180531,1750101046356,-460.0,0.00021917,4]
[366180532,1750101046370,-460.0,0.00022191,4]
[366180533,1750101046382,-1243.09771635,0.00024,2]
[366181177,1750101620620,5000.0,0.0002,2]
[366181178,1750101632035,1724.04292463,0.00024658,120]
[366181179,1750101636353,4564.92964053,0.0002,2]
[366181180,1750101636378,435.07035947,0.0002,2]
[366181181,1750101666475,5000.0,0.0002,2]
[366181182,1750101682228,4564.92964053,0.0002,2]
[366181183,1750101682251,435.07035947,0.0002,2]
[366181188,1750101884595,304.014079,0.00013699,2]
[366181190,1750101914930,5000.0,0.0002,2]
[366181193,1750101960455,200.02767242,0.000189,2]
[366181194,1750101973710,4060.88788911,0.0002,2]
[366181195,1750101973734,939.11211089,0.0002,2]
[366181198,1750102032724,981.38536908,0.0002,2]
[366181201,1750102128096,8079.50252003,0.0002,2]
[366181202,1750102128122,10000.0,0.0002,2]
[366181203,1750102128148,10000.0,0.0002,2]
[366181204,1750102128172,10000.0,0.0002,2]
[366181205,1750102128210,3642.0796751,0.0002,2]
[366181212,1750102160720,6357.9203249,0.00019817,2]
[366181213,1750102160745,1323.9187536,0.00019817,2]
[366181214,1750102165700,5000.0,0.0002,2]
[366181218,1750102180847,3676.0812464,0.0002,2]
[366181219,1750102180872,799.67712344,0.0002,2]
[366181221,1750102203121,262.1880352,0.0002,2]
[366181225,1750102225014,5000.0,0.0002,2]
[366181285,1750102232499,-319.67865078,0.00020005,2]
[366181287,1750102232509,-236.23153081,0.00020006,2]
[366181290,1750102232520,-2311.95038321,0.00020032,2]
[366181292,1750102232531,-304.014079,0.00020187,2]
[366181294,1750102232542,-299.1081732,0.00020287,2]
[366181296,1750102232552,-222.26498963,0.00020624,2]
[366181298,1750102232561,-300.0,0.00020624,2]
[366181300,1750102232571,-300.0,0.00020624,2]
[366181302,1750102232580,-24900.0,0.00020625,2]
[366181304,1750102232590,-160.47140235,0.000208,2]
[366181306,1750102232600,-39301.86988459,0.00020934,2]
[366181308,1750102232613,-10698.13011541,0.00020934,2]
[366181310,1750102232622,-207.21516892,0.00020934,2]
[366181312,1750102232632,-1454.31,0.00020944,2]
[366181314,1750102232642,-186.626822,0.00020998,2]
[366181316,1750102232652,-265.832465,0.00020998,2]
[366181318,1750102232661,-342.0421259,0.00020998,2]
[366181320,1750102232671,-182.1979162,0.00020998,2]
[366181322,1750102232680,-500.0,0.00021064,2]
[366181323,1750102232690,-173.674,0.00021899,2]
[366181325,1750102232699,-250.24,0.00021907,10]
[366181327,1750102232709,-460.0,0.00021917,2]
[366181329,1750102232718,-460.0,0.00021917,4]
[366181331,1750102232728,-460.0,0.00021917,4]
[366181333,1750102232740,-416.39,0.00021917,4]
[366181335,1750102232750,-460.0,0.00021917,4]
[366181337,1750102232759,-252.39,0.00021917,4]
[366181339,1750102232768,-460.0,0.00021917,4]
[366181341,1750102232779,-400.0,0.00021917,4]
[366181343,1750102232788,-460.0,0.00021917,4]
[366181345,1750102232798,-460.0,0.00021917,4]
[366181347,1750102232807,-460.0,0.00021917,4]
[366181349,1750102232816,-460.0,0.00021917,4]
[366181351,1750102232826,-460.0,0.00021917,4]
[366181353,1750102232835,-460.0,0.00021917,4]
[366181355,1750102232845,-460.0,0.00021917,4]
[366181357,1750102232854,-460.0,0.00021917,4]
[366181359,1750102232863,-460.0,0.00021917,4]
[366181360,1750102232873,-460.0,0.00021917,4]
[366181362,1750102232882,-460.0,0.00021917,4]
[366181364,1750102232892,-460.0,0.00021917,4]
[366181366,1750102232902,-460.0,0.00021917,4]
[366181368,1750102232911,-460.0,0.00021917,4]
[366181370,1750102232921,-460.0,0.00021917,4]
[366181372,1750102232930,-604.03624937,0.00021917,4]
[366181374,1750102232940,-460.0,0.00021917,4]
[366181376,1750102232950,-460.0,0.00021917,4]
[366181378,1750102232960,-460.0,0.00021917,4]
[366181379,1750102232969,-340.08838944,0.00021917,4]
[366181382,1750102232980,-460.0,0.00021917,4]
[366181383,1750102232990,-460.0,0.00021917,4]
[366181386,1750102233000,-294.09,0.00021917,4]
[366181388,1750102233011,-460.0,0.00021917,4]
[366181389,1750102233022,-460.0,0.00021917,4]
[366181391,1750102233033,-460.0,0.00021917,4]
[366181393,1750102233047,-460.0,0.00021917,4]
[366181395,1750102233057,-460.0,0.00021917,4]
[366181397,1750102233067,-460.0,0.00021917,4]
[366181399,1750102233079,-460.0,0.00021917,4]
[366181414,1750102233216,-460.0,0.00021917,4]
[366181416,1750102233227,-460.0,0.00021917,4]
[366181418,1750102233239,-460.0,0.00021917,4]
[366181419,1750102233249,-460.0,0.00021917,4]
[366181421,1750102233260,-460.0,0.00021917,4]
[366181423,1750102233270,-6426.48672667,0.00021995,2]
[366181425,1750102233280,-222.63852764,0.00022091,2]
[366181428,1750102233290,-408.2559645,0.00022191,4]
[366181429,1750102233300,-460.0,0.00022191,4]
[366181432,1750102233311,-460.0,0.00022191,4]
[366181434,1750102233321,-460.0,0.00022191,4]
[366181435,1750102233331,-460.0,0.00022191,4]
[366181438,1750102233342,-460.0,0.00022191,4]
[366181439,1750102233353,-460.0,0.00022191,4]
[366181441,1750102233363,-460.0,0.00022191,4]
[366181443,1750102233373,-460.0,0.00022191,4]
[366181445,1750102233384,-460.0,0.00022191,4]
[366181447,1750102233395,-460.0,0.00022191,4]
[366181449,1750102233405,-460.0,0.00022191,4]
[366181451,1750102233415,-420.16,0.00022191,4]
[366181453,1750102233425,-460.0,0.00022191,4]
[366181455,1750102233435,-177.0,0.00022354,2]
[366181457,1750102233445,-240.0,0.00022442,2]
[366181460,1750102233456,-420.0,0.00022442,2]
[366181461,1750102233466,-460.0,0.00022465,4]
[366181464,1750102233476,-460.0,0.00022465,4]
[366181466,1750102233487,-460.0,0.00022465,4]
[366181467,1750102233497,-460.0,0.00022465,4]
[366181469,1750102233507,-460.0,0.00022465,4]
[366181471,1750102233517,-460.0,0.00022465,4]
[366181473,1750102233527,-460.0,0.00022465,4]
[366181475,1750102233536,-460.0,0.00022465,4]
[366181477,1750102233546,-222.63852762,0.00022493,2]
[366181479,1750102233557,-177.0,0.00022691,2]
[366181481,1750102233567,-460.0,0.00022739,4]
[366181484,1750102233579,-460.0,0.00022739,4]
[366181486,1750102233589,-460.0,0.00022739,4]
[366181488,1750102233599,-460.0,0.00022739,4]
[366181489,1750102233608,-460.0,0.00022739,4]
[366181491,1750102233619,-460.0,0.00022739,4]
[366181493,1750102233629,-460.0,0.00022739,4]
[366181495,1750102233639,-2908.63,0.00022848,2]
[366181497,1750102233649,-222.63852762,0.00022896,2]
[366181499,1750102233659,-13591.0,0.00023,5]
[366181501,1750102233669,-460.0,0.00023013,4]
[366181503,1750102233679,-460.0,0.00023013,4]
[366181505,1750102233690,-460.0,0.00023013,4]
[366181507,1750102233700,-460.0,0.00023013,4]
[366181509,1750102233710,-460.0,0.00023013,4]
[366181512,1750102233721,-460.0,0.00023013,4]
[366181513,1750102233731,-460.0,0.00023013,4]
[366181515,1750102233741,-207.4,0.00023035,2]
[366181517,1750102233751,-460.0,0.00023287,4]
[366181520,1750102233761,-460.0,0.00023287,4]
[366181522,1750102233771,-460.0,0.00023287,4]
[366181523,1750102233781,-460.0,0.00023287,4]
[366181525,1750102233791,-460.0,0.00023287,4]
[366181527,1750102233801,-460.0,0.00023287,4]
[366181529,1750102233811,-460.0,0.00023287,4]
[366181531,1750102233821,-222.63852762,0.00023298,2]
[366181533,1750102233831,-177.0,0.0002331,2]
[366181535,1750102233841,-1833.353661,0.0002352,3]
[366181537,1750102233851,-151.0,0.00023537,6]
[366181539,1750102233861,-208.53,0.00023551,10]
[366181541,1750102233871,-460.0,0.00023561,4]
[366181543,1750102233881,-460.0,0.00023561,4]
[366181545,1750102233891,-460.0,0.00023561,4]
[366181547,1750102233901,-460.0,0.00023561,4]
[366181549,1750102233911,-460.0,0.00023561,4]
[366181551,1750102233921,-535.91114253,0.00023561,4]
[366181553,1750102233931,-460.0,0.00023561,4]
[366181555,1750102233941,-53794.10610291,0.00023597,2]
[366181557,1750102233950,-439.2094577,0.00023601,2]
[366181559,1750102233960,-562.73570717,0.00023613,7]
[366181561,1750102233969,-6817.81263633,0.00023687,2]
[366181563,1750102233981,-560.02,0.000237,2]
[366181564,1750102233991,-23800.7531766,0.000237,2]
[366181566,1750102234001,-222.63852762,0.000237,2]
[366181569,1750102234012,-168.0,0.00023704,2]
[366181570,1750102234023,-964.0,0.00023717,2]
[366181572,1750102234036,-177.0,0.00023733,2]
[366181574,1750102234046,-177.0,0.00023757,2]
[366181576,1750102234056,-500.84919256,0.00023773,2]
[366181578,1750102234067,-502.19345932,0.00023773,2]
[366181581,1750102234078,-336.9302654,0.00023773,2]
[366181582,1750102234088,-501.54253158,0.00023773,2]
[366181584,1750102234098,-636.55493512,0.00023773,2]
[366181586,1750102234107,-500.0,0.00023773,2]
[366181587,1750102234118,-500.0,0.00023773,2]
[366181588,1750102234129,-171.87098977,0.00023773,2]
[366181590,1750102234140,-500.0,0.00023773,2]
[366181592,1750102234150,-500.0,0.00023773,2]
[366181594,1750102234160,-500.0,0.00023773,2]
[366181596,1750102234170,-500.0,0.00023773,2]
[366181598,1750102234180,-600.0,0.00023773,2]
[366181600,1750102234191,-500.0,0.00023773,2]
[366181602,1750102234201,-6417.58066436,0.0002378,2]
[366181603,1750102234211,-30959.62449663,0.0002378,5]
[366181606,1750102234222,-359017.46966776,0.000238,3]
[366181607,1750102234234,-30000.0,0.000238,5]
[366181609,1750102234244,-151.0,0.0002381,7]
[366181611,1750102234255,-704.8,0.00023825,3]
[366181613,1750102234265,-12500.0,0.00023835,3]
[366181615,1750102234276,-12500.0,0.00023835,3]
[366181617,1750102234286,-10232.49732289,0.00023835,3]
[366181619,1750102234295,-460.0,0.00023835,4]
[366181620,1750102234304,-460.0,0.00023835,4]
[366181622,1750102234315,-460.0,0.00023835,4]
[366181624,1750102234324,-460.0,0.00023835,4]
[366181626,1750102234334,-460.0,0.00023835,4]
[366181628,1750102234343,-460.0,0.00023835,4]
[366181630,1750102234352,-200.0,0.00023899,2]
[366181632,1750102234362,-200.02767242,0.000239,2]
[366181634,1750102234372,-26938.7805974,0.000239,3]
[366181636,1750102234381,-151.0,0.000239,7]
[366181638,1750102234391,-154.063848,0.000239,7]
[366181640,1750102234400,-151.0,0.000239,7]
[366181641,1750102234410,-151.0,0.000239,7]
[366181644,1750102234420,-168.3351789,0.000239,2]
[366181645,1750102234429,-177.0,0.00023916,2]
[366181648,1750102234439,-500.0,0.00023973,2]
[366181650,1750102234448,-500.0,0.00023973,2]
[366181652,1750102234458,-500.0,0.00023973,2]
[366181654,1750102234468,-500.31929836,0.00023973,2]
[366181656,1750102234477,-500.0,0.00023973,2]
[366181658,1750102234488,-500.0,0.00023973,2]
[366181659,1750102234498,-500.0,0.00023973,2]
[366181661,1750102234507,-500.0,0.00023973,2]
[366181663,1750102234517,-6579.47506599,0.00023999,2]
[366181665,1750102234526,-6153.99779103,0.00023999,2]
[366181667,1750102234536,-160.0,0.00023999,2]
[366181669,1750102234547,-73308.40506916,0.00023999,2]
[366181671,1750102234556,-112229.91869008,0.00024,2]
[366181673,1750102234566,-151.0,0.00024,2]
[366181675,1750102234576,-1746.0,0.00024,3]
[366181677,1750102234586,-1746.0,0.00024,3]
[366181678,1750102234596,-333.93634825,0.00024,3]
[366181681,1750102234606,-200.62640265,0.00024,3]
[366181683,1750102234616,-317.0,0.00024,3]
[366181685,1750102234625,-317.0,0.00024,3]
[366181687,1750102234635,-317.0,0.00024,3]
[366181689,1750102234644,-317.0,0.00024,3]
[366181691,1750102234653,-317.0,0.00024,3]
[366181693,1750102234663,-317.0,0.00024,3]
[366181694,1750102234672,-439.6428673,0.00024,3]
[366181696,1750102234682,-317.0,0.00024,3]
[366181698,1750102234692,-154.83151814,0.00024,3]
[366181700,1750102234701,-317.0,0.00024,3]
[366181701,1750102234711,-317.0,0.00024,3]
[366181702,1750102234720,-318.92293093,0.00024,3]
[366181703,1750102234729,-151.0,0.00024,7]
[366181704,1750102234739,-755.00655226,0.00024,2]
[366181705,1750102234748,-151.0,0.00024,7]
[366181706,1750102234758,-117465.20689434,0.00024,2]
[366181707,1750102234767,-49458.11538872,0.00024,2]